[Event "Titled Tuesday Blitz October 04 Late 2022"]
[White "Jobava, Baadur"]
[Black "Mortazavi, Ali"]
[WhiteFideId "13601520"]
[BlackFideId "401323"]
[WhiteElo "2582"]
[BlackElo "2339"]
[Result "1-0"]
[Round "06"]
[TimeControl "180+1"]
[Date "2022.10.04"]
[WhiteClock "0:01:30"]
[BlackClock "0:00:15"]

1. d4 {[%clk 0:03:00]}  g6 {[%clk 0:02:59]} 2. h4 {[%clk 0:02:58]}  h5 {[%clk 0:02:59]} 3. e4 {[%clk 0:02:57]}  Bg7 {[%clk 0:02:59]} 4. Nf3 {[%clk 0:02:57]}  d6 {[%clk 0:03:00]} 5. Ng5 {[%clk 0:02:57]}  Nf6 {[%clk 0:02:44]} 6. Bc4 {[%clk 0:02:56]}  O-O {[%clk 0:02:44]} 7. O-O {[%clk 0:02:57]}  d5 {[%clk 0:02:34]} 8. exd5 {[%clk 0:02:56]}  Nxd5 {[%clk 0:02:34]} 9. Nc3 {[%clk 0:02:55]}  Nb6 {[%clk 0:02:23]} 10. Bb3 {[%clk 0:02:55]}  Nc6 {[%clk 0:02:23]} 11. d5 {[%clk 0:02:42]}  Ne5 {[%clk 0:02:07]} 12. Re1 {[%clk 0:02:40]}  Bg4 {[%clk 0:02:05]} 13. f3 {[%clk 0:02:39]}  Bf5 {[%clk 0:02:05]} 14. Qe2 {[%clk 0:02:34]}  Qd6 {[%clk 0:01:50]} 15. Kh1 {[%clk 0:02:20]}  Qb4 {[%clk 0:01:43]} 16. Nge4 {[%clk 0:02:16]}  Rad8 {[%clk 0:01:23]} 17. a3 {[%clk 0:02:14]}  Qa5 {[%clk 0:01:22]} 18. Bg5 {[%clk 0:02:14]}  Rfe8 {[%clk 0:01:19]} 19. Rad1 {[%clk 0:02:14]}  Rd7 {[%clk 0:01:05]} 20. Bf4 {[%clk 0:01:55]}  c5 {[%clk 0:00:43]} 21. Ng3 {[%clk 0:01:41]}  c4 {[%clk 0:00:27]} 22. Nxf5 {[%clk 0:01:41]}  gxf5 {[%clk 0:00:27]} 23. Bxe5 {[%clk 0:01:41]}  cxb3 {[%clk 0:00:26]} 24. cxb3 {[%clk 0:01:38]}  f6 {[%clk 0:00:17]} 25. b4 {[%clk 0:01:33]}  Qa6 {[%clk 0:00:15]} 26. b5 {[%clk 0:01:33]}  Qa5 {[%clk 0:00:16]} 27. Bd4 {[%clk 0:01:31]}  Rd6 {[%clk 0:00:14]} 28. Bc5 {[%clk 0:01:30]}  Rdd8 {[%clk 0:00:15]} 29. Bb4 {[%clk 0:01:30]} 1-0


[Site "https://www.chess.com"]

[Event "Titled Tuesday Blitz October 04 Late 2022"]
[White "Le, Tuan Minh"]
[Black "Nakamura, Hikaru"]
[WhiteFideId "12401153"]
[BlackFideId "2016192"]
[WhiteElo "2530"]
[BlackElo "2909"]
[Result "1/2-1/2"]
[Round "06"]
[TimeControl "180+1"]
[Date "2022.10.04"]
[WhiteClock "0:00:10"]
[BlackClock "0:00:12"]

1. d4 {[%clk 0:03:00]}  g6 {[%clk 0:02:54]} 2. e4 {[%clk 0:03:01]}  Bg7 {[%clk 0:02:55]} 3. Nf3 {[%clk 0:03:01]}  d6 {[%clk 0:02:55]} 4. Bc4 {[%clk 0:03:01]}  Nf6 {[%clk 0:02:55]} 5. Qe2 {[%clk 0:03:02]}  O-O {[%clk 0:02:55]} 6. O-O {[%clk 0:03:03]}  Bg4 {[%clk 0:02:55]} 7. e5 {[%clk 0:03:03]}  dxe5 {[%clk 0:02:31]} 8. dxe5 {[%clk 0:03:04]}  Nd5 {[%clk 0:02:32]} 9. Rd1 {[%clk 0:02:45]}  e6 {[%clk 0:02:31]} 10. Nbd2 {[%clk 0:02:43]}  Nc6 {[%clk 0:02:26]} 11. h3 {[%clk 0:02:28]}  Nd4 {[%clk 0:02:26]} 12. Qe4 {[%clk 0:02:19]}  Bxf3 {[%clk 0:02:12]} 13. Nxf3 {[%clk 0:02:19]}  Nxf3+ {[%clk 0:02:13]} 14. Qxf3 {[%clk 0:02:20]}  c6 {[%clk 0:02:01]} 15. Qe2 {[%clk 0:02:12]}  Qc7 {[%clk 0:01:57]} 16. Re1 {[%clk 0:02:12]}  b5 {[%clk 0:01:56]} 17. Bxd5 {[%clk 0:01:56]}  exd5 {[%clk 0:01:44]} 18. Bf4 {[%clk 0:01:38]}  Rfe8 {[%clk 0:01:43]} 19. Bg3 {[%clk 0:01:35]}  Qd7 {[%clk 0:01:39]} 20. Rad1 {[%clk 0:01:33]}  Re6 {[%clk 0:01:31]} 21. f4 {[%clk 0:01:33]}  f6 {[%clk 0:01:31]} 22. b3 {[%clk 0:01:17]}  fxe5 {[%clk 0:01:31]} 23. fxe5 {[%clk 0:01:18]}  b4 {[%clk 0:01:26]} 24. Qg4 {[%clk 0:01:07]}  a5 {[%clk 0:01:26]} 25. Rd2 {[%clk 0:01:02]}  Rae8 {[%clk 0:01:25]} 26. Rde2 {[%clk 0:01:02]}  c5 {[%clk 0:01:22]} 27. Qf3 {[%clk 0:00:56]}  a4 {[%clk 0:01:19]} 28. Rd1 {[%clk 0:00:51]}  d4 {[%clk 0:01:05]} 29. Rde1 {[%clk 0:00:51]}  Qc6 {[%clk 0:01:00]} 30. Qxc6 {[%clk 0:00:40]}  Rxc6 {[%clk 0:01:00]} 31. e6 {[%clk 0:00:40]}  c4 {[%clk 0:01:01]} 32. bxc4 {[%clk 0:00:40]}  Rxc4 {[%clk 0:01:00]} 33. Bd6 {[%clk 0:00:33]}  b3 {[%clk 0:00:18]} 34. axb3 {[%clk 0:00:33]}  axb3 {[%clk 0:00:19]} 35. cxb3 {[%clk 0:00:34]}  Rc6 {[%clk 0:00:19]} 36. Bb4 {[%clk 0:00:14]}  Rb6 {[%clk 0:00:18]} 37. Bc5 {[%clk 0:00:14]}  Rxb3 {[%clk 0:00:18]} 38. Rd1 {[%clk 0:00:14]}  Rb5 {[%clk 0:00:05]} 39. Bxd4 {[%clk 0:00:11]}  Rd5 {[%clk 0:00:05]} 40. Red2 {[%clk 0:00:11]}  Bh6 {[%clk 0:00:06]} 41. Rd3 {[%clk 0:00:10]}  Rxe6 {[%clk 0:00:06]} 42. Bc3 {[%clk 0:00:09]}  Rxd3 {[%clk 0:00:05]} 43. Rxd3 {[%clk 0:00:10]}  Bf8 {[%clk 0:00:05]} 44. Kf2 {[%clk 0:00:10]}  Kf7 {[%clk 0:00:05]} 45. Rd7+ {[%clk 0:00:10]}  Kg8 {[%clk 0:00:05]} 46. Rd8 {[%clk 0:00:10]}  Kf7 {[%clk 0:00:05]} 47. Rd7+ {[%clk 0:00:10]}  Kg8 {[%clk 0:00:06]} 48. Rd8 {[%clk 0:00:11]}  Re4 {[%clk 0:00:05]} 49. Bd4 {[%clk 0:00:08]}  Kf7 {[%clk 0:00:05]} 50. Kf3 {[%clk 0:00:09]}  Re1 {[%clk 0:00:04]} 51. Rd7+ {[%clk 0:00:09]}  Kg8 {[%clk 0:00:04]} 52. Rd8 {[%clk 0:00:09]}  Rc1 {[%clk 0:00:03]} 53. Be3 {[%clk 0:00:09]}  Rc3 {[%clk 0:00:03]} 54. Ke2 {[%clk 0:00:09]}  Kf7 {[%clk 0:00:03]} 55. Rd7+ {[%clk 0:00:10]}  Kg8 {[%clk 0:00:03]} 56. Rd8 {[%clk 0:00:10]}  Kf7 {[%clk 0:00:04]} 57. Rb8 {[%clk 0:00:10]}  Rc7 {[%clk 0:00:04]} 58. g4 {[%clk 0:00:09]}  Rd7 {[%clk 0:00:04]} 59. Bf4 {[%clk 0:00:08]}  Bg7 {[%clk 0:00:05]} 60. Kf3 {[%clk 0:00:08]}  Re7 {[%clk 0:00:06]} 61. Rb5 {[%clk 0:00:07]}  Rd7 {[%clk 0:00:06]} 62. h4 {[%clk 0:00:08]}  Rd3+ {[%clk 0:00:07]} 63. Ke4 {[%clk 0:00:08]}  Rd4+ {[%clk 0:00:07]} 64. Kf3 {[%clk 0:00:08]}  Rd7 {[%clk 0:00:08]} 65. h5 {[%clk 0:00:09]}  gxh5 {[%clk 0:00:09]} 66. Rxh5 {[%clk 0:00:08]}  Kg8 {[%clk 0:00:09]} 67. Rg5 {[%clk 0:00:08]}  Rf7 {[%clk 0:00:09]} 68. Kg3 {[%clk 0:00:08]}  h6 {[%clk 0:00:09]} 69. Rb5 {[%clk 0:00:07]}  Ra7 {[%clk 0:00:09]} 70. Be5 {[%clk 0:00:07]}  Bf8 {[%clk 0:00:08]} 71. Bf4 {[%clk 0:00:03]}  Kf7 {[%clk 0:00:08]} 72. Rf5+ {[%clk 0:00:03]}  Kg8 {[%clk 0:00:08]} 73. Be3 {[%clk 0:00:04]}  Ra3 {[%clk 0:00:09]} 74. Rf3 {[%clk 0:00:04]}  Bd6+ {[%clk 0:00:09]} 75. Bf4 {[%clk 0:00:05]}  Bxf4+ {[%clk 0:00:07]} 76. Kxf4 {[%clk 0:00:05]}  Rxf3+ {[%clk 0:00:07]} 77. Kxf3 {[%clk 0:00:06]}  Kg7 {[%clk 0:00:08]} 78. Kg3 {[%clk 0:00:07]}  Kf6 {[%clk 0:00:08]} 79. Kh4 {[%clk 0:00:08]}  Kg6 {[%clk 0:00:09]} 80. Kh3 {[%clk 0:00:08]}  Kg5 {[%clk 0:00:10]} 81. Kg3 {[%clk 0:00:09]}  h5 {[%clk 0:00:11]} 82. gxh5 {[%clk 0:00:10]}  Kxh5 {[%clk 0:00:12]} 1/2-1/2


[Site "https://www.chess.com"]

[Event "Titled Tuesday Blitz October 04 Late 2022"]
[White "Leiva, Gianmarco"]
[Black "Howell, David W L"]
[WhiteFideId "3804399"]
[BlackFideId "410608"]
[WhiteElo "2285"]
[BlackElo "2567"]
[Result "0-1"]
[Round "06"]
[TimeControl "180+1"]
[Date "2022.10.04"]
[WhiteClock "0:00:01"]
[BlackClock "0:00:10"]

1. d4 {[%clk 0:03:00]}  b6 {[%clk 0:03:00]} 2. Bf4 {[%clk 0:03:00]}  Bb7 {[%clk 0:03:01]} 3. e3 {[%clk 0:03:00]}  g6 {[%clk 0:03:01]} 4. Nd2 {[%clk 0:03:00]}  Bg7 {[%clk 0:03:02]} 5. a4 {[%clk 0:03:00]}  a6 {[%clk 0:03:01]} 6. Ngf3 {[%clk 0:02:56]}  d6 {[%clk 0:03:02]} 7. h3 {[%clk 0:02:56]}  Nd7 {[%clk 0:03:02]} 8. Be2 {[%clk 0:02:54]}  h6 {[%clk 0:03:01]} 9. Bh2 {[%clk 0:02:53]}  e6 {[%clk 0:03:01]} 10. O-O {[%clk 0:02:53]}  Ne7 {[%clk 0:03:02]} 11. a5 {[%clk 0:02:42]}  b5 {[%clk 0:03:01]} 12. c4 {[%clk 0:02:42]}  bxc4 {[%clk 0:02:59]} 13. Nxc4 {[%clk 0:02:40]}  O-O {[%clk 0:02:59]} 14. Nfd2 {[%clk 0:02:31]}  Ra7 {[%clk 0:02:41]} 15. b4 {[%clk 0:02:27]}  Qa8 {[%clk 0:02:40]} 16. Nf3 {[%clk 0:02:00]}  Rb8 {[%clk 0:02:39]} 17. Qd2 {[%clk 0:01:55]}  Be4 {[%clk 0:02:35]} 18. Ne1 {[%clk 0:01:43]}  Nc6 {[%clk 0:02:27]} 19. Ra4 {[%clk 0:01:30]}  Rab7 {[%clk 0:02:04]} 20. f3 {[%clk 0:01:25]}  Bb1 {[%clk 0:01:59]} 21. Nxd6 {[%clk 0:00:40]}  cxd6 {[%clk 0:01:26]} 22. Bxd6 {[%clk 0:00:40]}  Bf8 {[%clk 0:01:26]} 23. Bxb8 {[%clk 0:00:34]}  Ndxb8 {[%clk 0:01:16]} 24. Qc1 {[%clk 0:00:29]}  Bf5 {[%clk 0:01:02]} 25. g4 {[%clk 0:00:29]}  Nxb4 {[%clk 0:00:55]} 26. gxf5 {[%clk 0:00:28]}  exf5 {[%clk 0:00:56]} 27. Nd3 {[%clk 0:00:21]}  N8c6 {[%clk 0:00:43]} 28. Nc5 {[%clk 0:00:18]}  Re7 {[%clk 0:00:40]} 29. Re1 {[%clk 0:00:14]}  h5 {[%clk 0:00:25]} 30. Bf1 {[%clk 0:00:13]}  Bh6 {[%clk 0:00:24]} 31. f4 {[%clk 0:00:12]}  Qe8 {[%clk 0:00:21]} 32. Nxa6 {[%clk 0:00:11]}  Nxa6 {[%clk 0:00:18]} 33. Bxa6 {[%clk 0:00:11]}  Bxf4 {[%clk 0:00:18]} 34. Ra3 {[%clk 0:00:09]}  Nxd4 {[%clk 0:00:17]} 35. Qd1 {[%clk 0:00:07]}  Rxe3 {[%clk 0:00:11]} 36. Rexe3 {[%clk 0:00:02]}  Bxe3+ {[%clk 0:00:12]} 37. Kf1 {[%clk 0:00:02]}  Qe4 {[%clk 0:00:11]} 38. Rxe3 {[%clk 0:00:01]}  Qh1+ {[%clk 0:00:09]} 39. Kf2 {[%clk 0:00:01]}  Qxd1 {[%clk 0:00:10]} 0-1


[Site "https://www.chess.com"]

[Event "Titled Tuesday Blitz October 04 Late 2022"]
[White "Martinez Alcantara, Jose Eduardo"]
[Black "Boyer, Mahel"]
[WhiteFideId "3805662"]
[BlackFideId "45102422"]
[WhiteElo "2703"]
[BlackElo "2454"]
[Result "1-0"]
[Round "06"]
[TimeControl "180+1"]
[Date "2022.10.04"]
[WhiteClock "0:02:31"]
[BlackClock "0:02:30"]

1. e4 {[%clk 0:03:00]}  Nc6 {[%clk 0:02:59]} 2. Nf3 {[%clk 0:03:00]}  d5 {[%clk 0:03:00]} 3. exd5 {[%clk 0:02:59]}  Qxd5 {[%clk 0:03:01]} 4. Nc3 {[%clk 0:02:59]}  Qh5 {[%clk 0:03:01]} 5. d4 {[%clk 0:02:59]}  Bg4 {[%clk 0:03:02]} 6. Bb5 {[%clk 0:02:58]}  O-O-O {[%clk 0:03:03]} 7. Bxc6 {[%clk 0:02:58]}  bxc6 {[%clk 0:03:03]} 8. Qe2 {[%clk 0:02:56]}  Bxf3 {[%clk 0:03:03]} 9. gxf3 {[%clk 0:02:56]}  e6 {[%clk 0:03:04]} 10. Qa6+ {[%clk 0:02:53]}  Kd7 {[%clk 0:03:03]} 11. Qd3 {[%clk 0:02:50]}  Nf6 {[%clk 0:03:02]} 12. Bf4 {[%clk 0:02:49]}  Nd5 {[%clk 0:03:00]} 13. Bg3 {[%clk 0:02:48]}  Nb4 {[%clk 0:02:59]} 14. Qe2 {[%clk 0:02:48]}  Qf5 {[%clk 0:02:51]} 15. O-O-O {[%clk 0:02:47]}  Be7 {[%clk 0:02:51]} 16. a3 {[%clk 0:02:47]}  Nd5 {[%clk 0:02:50]} 17. Ne4 {[%clk 0:02:47]}  Rb8 {[%clk 0:02:48]} 18. Nc5+ {[%clk 0:02:42]}  Bxc5 {[%clk 0:02:37]} 19. dxc5 {[%clk 0:02:43]}  Kc8 {[%clk 0:02:37]} 20. Qa6+ {[%clk 0:02:40]}  Rb7 {[%clk 0:02:37]} 21. Rd3 {[%clk 0:02:36]}  Ne7 {[%clk 0:02:28]} 22. Rb3 {[%clk 0:02:33]}  Qg5+ {[%clk 0:02:28]} 23. Kb1 {[%clk 0:02:32]}  Qxc5 {[%clk 0:02:28]} 24. Qxb7+ {[%clk 0:02:32]}  Kd7 {[%clk 0:02:29]} 25. Rc3 {[%clk 0:02:31]}  Nd5 {[%clk 0:02:30]} 26. Rxc5 {[%clk 0:02:31]} 1-0


[Site "https://www.chess.com"]

[Event "Titled Tuesday Blitz October 04 Late 2022"]
[White "Rasulov, Vugar"]
[Black "Gunduz, Umut Erdem"]
[WhiteFideId "13402390"]
[BlackFideId "6381383"]
[WhiteElo "2509"]
[BlackElo "2182"]
[Result "1-0"]
[Round "06"]
[TimeControl "180+1"]
[Date "2022.10.04"]
[WhiteClock "0:00:03"]
[BlackClock "0:00:04"]

1. d4 {[%clk 0:03:00]}  Nf6 {[%clk 0:03:00]} 2. c4 {[%clk 0:03:01]}  c6 {[%clk 0:02:56]} 3. Nf3 {[%clk 0:03:00]}  d5 {[%clk 0:02:57]} 4. Nc3 {[%clk 0:03:00]}  dxc4 {[%clk 0:02:57]} 5. a4 {[%clk 0:02:58]}  Bf5 {[%clk 0:02:57]} 6. e3 {[%clk 0:02:56]}  Nbd7 {[%clk 0:02:49]} 7. Bxc4 {[%clk 0:02:56]}  Nb6 {[%clk 0:02:49]} 8. Bb3 {[%clk 0:02:48]}  a5 {[%clk 0:02:48]} 9. O-O {[%clk 0:02:48]}  e6 {[%clk 0:02:48]} 10. Qe2 {[%clk 0:02:48]}  Bb4 {[%clk 0:02:42]} 11. e4 {[%clk 0:02:44]}  Bg4 {[%clk 0:02:39]} 12. e5 {[%clk 0:02:37]}  Nfd5 {[%clk 0:02:33]} 13. Ne4 {[%clk 0:02:36]}  Be7 {[%clk 0:02:23]} 14. h3 {[%clk 0:02:32]}  Bh5 {[%clk 0:02:21]} 15. Bd2 {[%clk 0:02:27]}  Nb4 {[%clk 0:02:10]} 16. Rac1 {[%clk 0:02:19]}  N6d5 {[%clk 0:02:10]} 17. Rfd1 {[%clk 0:02:08]}  Qb6 {[%clk 0:02:07]} 18. Bc4 {[%clk 0:02:05]}  O-O {[%clk 0:02:03]} 19. b3 {[%clk 0:02:04]}  Rfd8 {[%clk 0:02:00]} 20. Be3 {[%clk 0:01:53]}  Bg6 {[%clk 0:01:58]} 21. Nc5 {[%clk 0:01:46]}  Nxe3 {[%clk 0:01:56]} 22. Qxe3 {[%clk 0:01:47]}  Nd5 {[%clk 0:01:47]} 23. Qe1 {[%clk 0:01:34]}  Nb4 {[%clk 0:01:28]} 24. Qe2 {[%clk 0:01:19]}  Nd5 {[%clk 0:01:13]} 25. g3 {[%clk 0:01:16]}  Qb4 {[%clk 0:01:04]} 26. Nd3 {[%clk 0:01:05]}  Qb6 {[%clk 0:00:41]} 27. Nc5 {[%clk 0:01:03]}  Qb4 {[%clk 0:00:41]} 28. Nd3 {[%clk 0:00:47]}  Qb6 {[%clk 0:00:41]} 29. Kh2 {[%clk 0:00:31]}  Ba3 {[%clk 0:00:25]} 30. Rc2 {[%clk 0:00:31]}  Be7 {[%clk 0:00:22]} 31. Rcd2 {[%clk 0:00:30]}  Nc3 {[%clk 0:00:21]} 32. Qe3 {[%clk 0:00:27]}  Nxd1 {[%clk 0:00:22]} 33. Rxd1 {[%clk 0:00:28]}  Rd7 {[%clk 0:00:21]} 34. Nf4 {[%clk 0:00:25]}  Rad8 {[%clk 0:00:18]} 35. h4 {[%clk 0:00:25]}  Bf5 {[%clk 0:00:17]} 36. Re1 {[%clk 0:00:16]}  Bg4 {[%clk 0:00:16]} 37. Kg2 {[%clk 0:00:11]}  Bxf3+ {[%clk 0:00:16]} 38. Qxf3 {[%clk 0:00:12]}  Rxd4 {[%clk 0:00:15]} 39. h5 {[%clk 0:00:10]}  Rd2 {[%clk 0:00:14]} 40. h6 {[%clk 0:00:10]}  Bc5 {[%clk 0:00:12]} 41. Rf1 {[%clk 0:00:08]}  g6 {[%clk 0:00:12]} 42. Nxe6 {[%clk 0:00:08]}  R8d7 {[%clk 0:00:06]} 43. Ng5 {[%clk 0:00:07]}  Bxf2 {[%clk 0:00:05]} 44. Bxf7+ {[%clk 0:00:05]}  Kf8 {[%clk 0:00:04]} 45. Be6+ {[%clk 0:00:05]}  Ke8 {[%clk 0:00:03]} 46. Bxd7+ {[%clk 0:00:05]}  Kxd7 {[%clk 0:00:03]} 47. Rxf2 {[%clk 0:00:04]}  Rxf2+ {[%clk 0:00:04]} 48. Qxf2 {[%clk 0:00:05]}  Qxb3 {[%clk 0:00:04]} 49. e6+ {[%clk 0:00:05]}  Kc7 {[%clk 0:00:04]} 50. Qf4+ {[%clk 0:00:05]}  Kb6 {[%clk 0:00:03]} 51. Qd4+ {[%clk 0:00:04]}  Ka6 {[%clk 0:00:03]} 52. Qe4 {[%clk 0:00:04]}  Qb2+ {[%clk 0:00:03]} 53. Kh3 {[%clk 0:00:04]}  Qf6 {[%clk 0:00:03]} 54. Nf3 {[%clk 0:00:02]}  g5 {[%clk 0:00:03]} 55. g4 {[%clk 0:00:03]}  Qxh6+ {[%clk 0:00:04]} 56. Kg3 {[%clk 0:00:03]}  Qg7 {[%clk 0:00:04]} 57. e7 {[%clk 0:00:03]} 1-0


[Site "https://www.chess.com"]

[Event "Titled Tuesday Blitz October 04 Late 2022"]
[White "Rosenberg, Evan S"]
[Black "Tanenbaum, Zachary"]
[WhiteFideId "2019299"]
[BlackFideId "2060850"]
[WhiteElo "2412"]
[BlackElo "2175"]
[Result "0-1"]
[Round "06"]
[TimeControl "180+1"]
[Date "2022.10.04"]
[WhiteClock "0:00:07"]
[BlackClock "0:01:08"]

1. e4 {[%clk 0:02:59]}  e5 {[%clk 0:03:00]} 2. Nf3 {[%clk 0:02:57]}  Nc6 {[%clk 0:03:01]} 3. Nc3 {[%clk 0:02:55]}  Nf6 {[%clk 0:03:00]} 4. d4 {[%clk 0:02:55]}  exd4 {[%clk 0:03:01]} 5. Nxd4 {[%clk 0:02:56]}  Bb4 {[%clk 0:03:01]} 6. Nxc6 {[%clk 0:02:53]}  bxc6 {[%clk 0:03:02]} 7. Bd3 {[%clk 0:02:53]}  d5 {[%clk 0:03:02]} 8. exd5 {[%clk 0:02:51]}  O-O {[%clk 0:03:03]} 9. O-O {[%clk 0:02:51]}  cxd5 {[%clk 0:03:03]} 10. Bg5 {[%clk 0:02:50]}  c6 {[%clk 0:03:02]} 11. Qf3 {[%clk 0:02:46]}  Be7 {[%clk 0:03:01]} 12. h3 {[%clk 0:02:40]}  Be6 {[%clk 0:03:00]} 13. Rad1 {[%clk 0:02:39]}  Rb8 {[%clk 0:02:59]} 14. b3 {[%clk 0:02:37]}  Re8 {[%clk 0:02:41]} 15. Rfe1 {[%clk 0:02:34]}  Nd7 {[%clk 0:02:31]} 16. Bxe7 {[%clk 0:02:22]}  Qxe7 {[%clk 0:02:32]} 17. Bf5 {[%clk 0:02:13]}  Qf6 {[%clk 0:02:30]} 18. Bxe6 {[%clk 0:02:07]}  Qxf3 {[%clk 0:02:29]} 19. gxf3 {[%clk 0:02:01]}  Rxe6 {[%clk 0:02:24]} 20. Rxe6 {[%clk 0:01:58]}  fxe6 {[%clk 0:02:25]} 21. Ne4 {[%clk 0:01:54]}  Kf7 {[%clk 0:02:14]} 22. Ng5+ {[%clk 0:01:50]}  Kf6 {[%clk 0:02:14]} 23. f4 {[%clk 0:01:48]}  h6 {[%clk 0:02:11]} 24. Nf3 {[%clk 0:01:45]}  c5 {[%clk 0:02:10]} 25. Re1 {[%clk 0:01:42]}  Rb4 {[%clk 0:02:08]} 26. Ne5 {[%clk 0:01:32]}  Nxe5 {[%clk 0:02:08]} 27. fxe5+ {[%clk 0:01:32]}  Kf5 {[%clk 0:02:09]} 28. f3 {[%clk 0:01:19]}  Kf4 {[%clk 0:01:55]} 29. Kf2 {[%clk 0:01:12]}  Rb7 {[%clk 0:01:55]} 30. c3 {[%clk 0:01:01]}  Rf7 {[%clk 0:01:54]} 31. h4 {[%clk 0:00:51]}  Rd7 {[%clk 0:01:37]} 32. c4 {[%clk 0:00:47]}  dxc4 {[%clk 0:01:36]} 33. Re4+ {[%clk 0:00:47]}  Kf5 {[%clk 0:01:35]} 34. Rxc4 {[%clk 0:00:48]}  Rd5 {[%clk 0:01:23]} 35. f4 {[%clk 0:00:45]}  Rd4 {[%clk 0:01:20]} 36. Rxd4 {[%clk 0:00:38]}  cxd4 {[%clk 0:01:20]} 37. Kf3 {[%clk 0:00:38]}  d3 {[%clk 0:01:17]} 38. b4 {[%clk 0:00:34]}  d2 {[%clk 0:01:09]} 39. Ke2 {[%clk 0:00:34]}  Kxf4 {[%clk 0:01:10]} 40. Kxd2 {[%clk 0:00:30]}  g5 {[%clk 0:01:10]} 41. hxg5 {[%clk 0:00:29]}  hxg5 {[%clk 0:01:10]} 42. a4 {[%clk 0:00:29]}  Kxe5 {[%clk 0:01:11]} 43. Ke3 {[%clk 0:00:28]}  Kd5 {[%clk 0:01:10]} 44. Kf3 {[%clk 0:00:23]}  e5 {[%clk 0:01:10]} 45. b5 {[%clk 0:00:18]}  e4+ {[%clk 0:01:10]} 46. Ke3 {[%clk 0:00:17]}  g4 {[%clk 0:01:10]} 47. a5 {[%clk 0:00:18]}  g3 {[%clk 0:01:10]} 48. Ke2 {[%clk 0:00:06]}  Kc5 {[%clk 0:01:07]} 49. b6 {[%clk 0:00:06]}  axb6 {[%clk 0:01:07]} 50. a6 {[%clk 0:00:07]}  Kc6 {[%clk 0:01:08]} 51. a7 {[%clk 0:00:07]}  Kb7 {[%clk 0:01:08]} 0-1


[Site "https://www.chess.com"]

[Event "Titled Tuesday Blitz October 04 Late 2022"]
[White "Rustemov, Alexander"]
[Black "Machidon, Cristi"]
[WhiteFideId "4119002"]
[BlackFideId "13904590"]
[WhiteElo "2788"]
[BlackElo "2312"]
[Result "0-1"]
[Round "06"]
[TimeControl "180+1"]
[Date "2022.10.04"]
[WhiteClock "0:00:06"]
[BlackClock "0:00:15"]

1. d4 {[%clk 0:03:00]}  d5 {[%clk 0:02:58]} 2. c4 {[%clk 0:03:00]}  c6 {[%clk 0:02:58]} 3. Nc3 {[%clk 0:03:00]}  Nf6 {[%clk 0:02:59]} 4. e3 {[%clk 0:03:00]}  e6 {[%clk 0:02:59]} 5. Nf3 {[%clk 0:03:00]}  Nbd7 {[%clk 0:02:59]} 6. Qc2 {[%clk 0:03:01]}  Be7 {[%clk 0:02:59]} 7. Bd3 {[%clk 0:02:55]}  dxc4 {[%clk 0:02:58]} 8. Bxc4 {[%clk 0:02:55]}  b5 {[%clk 0:02:59]} 9. Bd3 {[%clk 0:02:52]}  Bb7 {[%clk 0:02:59]} 10. e4 {[%clk 0:02:51]}  a6 {[%clk 0:02:49]} 11. e5 {[%clk 0:02:49]}  Nd5 {[%clk 0:02:48]} 12. Nxd5 {[%clk 0:02:47]}  cxd5 {[%clk 0:02:46]} 13. Qe2 {[%clk 0:02:41]}  Rc8 {[%clk 0:02:34]} 14. h4 {[%clk 0:02:41]}  Qa5+ {[%clk 0:01:55]} 15. Kf1 {[%clk 0:02:39]}  h6 {[%clk 0:01:47]} 16. g3 {[%clk 0:02:36]}  Nb8 {[%clk 0:01:40]} 17. Kg2 {[%clk 0:02:36]}  Nc6 {[%clk 0:01:41]} 18. a3 {[%clk 0:02:30]}  Qb6 {[%clk 0:01:39]} 19. Be3 {[%clk 0:02:29]}  Na5 {[%clk 0:01:39]} 20. h5 {[%clk 0:02:18]}  Nc4 {[%clk 0:01:37]} 21. Bf4 {[%clk 0:02:14]}  a5 {[%clk 0:01:32]} 22. Rac1 {[%clk 0:01:51]}  a4 {[%clk 0:01:27]} 23. Rc2 {[%clk 0:01:42]}  Kd7 {[%clk 0:01:23]} 24. Rhc1 {[%clk 0:01:41]}  Rc7 {[%clk 0:01:17]} 25. g4 {[%clk 0:01:20]}  Rhc8 {[%clk 0:01:13]} 26. Kg3 {[%clk 0:00:58]}  b4 {[%clk 0:01:10]} 27. axb4 {[%clk 0:00:56]}  Qxb4 {[%clk 0:01:08]} 28. Ra1 {[%clk 0:00:45]}  Kd8 {[%clk 0:00:39]} 29. Bd2 {[%clk 0:00:44]}  Qb3 {[%clk 0:00:35]} 30. Rc3 {[%clk 0:00:35]}  Qb6 {[%clk 0:00:33]} 31. Bc1 {[%clk 0:00:28]}  Bc6 {[%clk 0:00:30]} 32. Qc2 {[%clk 0:00:28]}  Bb5 {[%clk 0:00:29]} 33. b3 {[%clk 0:00:28]}  Na5 {[%clk 0:00:23]} 34. Rxc7 {[%clk 0:00:15]}  Rxc7 {[%clk 0:00:24]} 35. Qe2 {[%clk 0:00:14]}  Nxb3 {[%clk 0:00:24]} 36. Bxb5 {[%clk 0:00:09]}  Nxa1 {[%clk 0:00:24]} 37. Bb2 {[%clk 0:00:09]}  Nb3 {[%clk 0:00:22]} 38. Bxa4 {[%clk 0:00:09]}  Na5 {[%clk 0:00:21]} 39. Bb5 {[%clk 0:00:06]}  Nc4 {[%clk 0:00:21]} 40. Bxc4 {[%clk 0:00:06]}  Rxc4 {[%clk 0:00:21]} 41. Ba1 {[%clk 0:00:03]}  Qa5 {[%clk 0:00:20]} 42. Qb2 {[%clk 0:00:02]}  Rb4 {[%clk 0:00:18]} 43. Qc1 {[%clk 0:00:03]}  Rc4 {[%clk 0:00:18]} 44. Qb1 {[%clk 0:00:03]}  Bb4 {[%clk 0:00:18]} 45. Bb2 {[%clk 0:00:02]}  Qa4 {[%clk 0:00:16]} 46. Qh7 {[%clk 0:00:03]}  Bf8 {[%clk 0:00:16]} 47. Qg8 {[%clk 0:00:03]}  Ke8 {[%clk 0:00:16]} 48. g5 {[%clk 0:00:03]}  hxg5 {[%clk 0:00:17]} 49. h6 {[%clk 0:00:03]}  gxh6 {[%clk 0:00:16]} 50. Nh2 {[%clk 0:00:03]}  Qb3+ {[%clk 0:00:16]} 51. f3 {[%clk 0:00:03]}  Qxb2 {[%clk 0:00:15]} 52. Ng4 {[%clk 0:00:04]}  Qa3 {[%clk 0:00:13]} 53. Nxh6 {[%clk 0:00:04]}  Rc7 {[%clk 0:00:12]} 54. Ng4 {[%clk 0:00:03]}  Kd8 {[%clk 0:00:10]} 55. Nf6 {[%clk 0:00:02]}  Kc8 {[%clk 0:00:11]} 56. Qh7 {[%clk 0:00:02]}  Kb7 {[%clk 0:00:10]} 57. Qb1+ {[%clk 0:00:02]}  Ka7 {[%clk 0:00:10]} 58. Ne8 {[%clk 0:00:01]}  Rb7 {[%clk 0:00:09]} 59. Qc2 {[%clk 0:00:01]}  Bb4 {[%clk 0:00:09]} 60. Qc8 {[%clk 0:00:02]}  Qa6 {[%clk 0:00:09]} 61. Nc7 {[%clk 0:00:03]}  Rxc7 {[%clk 0:00:08]} 62. Qxc7+ {[%clk 0:00:03]}  Qb7 {[%clk 0:00:09]} 63. Qd8 {[%clk 0:00:03]}  Be1+ {[%clk 0:00:10]} 64. Kg4 {[%clk 0:00:03]}  Bc3 {[%clk 0:00:10]} 65. Qxg5 {[%clk 0:00:03]}  Bxd4 {[%clk 0:00:10]} 66. Qd2 {[%clk 0:00:04]}  Bb6 {[%clk 0:00:11]} 67. Qa2+ {[%clk 0:00:03]}  Qa6 {[%clk 0:00:11]} 68. f4 {[%clk 0:00:04]}  Qxa2 {[%clk 0:00:11]} 69. Kg5 {[%clk 0:00:03]}  Qc2 {[%clk 0:00:12]} 70. Kf6 {[%clk 0:00:04]}  Qf5+ {[%clk 0:00:13]} 71. Ke7 {[%clk 0:00:04]}  d4 {[%clk 0:00:13]} 72. Kf8 {[%clk 0:00:04]}  d3 {[%clk 0:00:14]} 73. Ke8 {[%clk 0:00:04]}  d2 {[%clk 0:00:15]} 74. Kf8 {[%clk 0:00:05]}  d1=Q {[%clk 0:00:15]} 75. Ke7 {[%clk 0:00:06]}  Qd8# {[%clk 0:00:15]} 0-1


[Site "https://www.chess.com"]